[Event "German Bundesliga 2022-23"]
[Site "Germany"]
[Date "2022.11.26"]
[Round "3.7"]
[White "Fedorchuk, Sergey A."]
[Black "Kozul, Zdenko"]
[Result "1/2-1/2"]
[ECO "B67"]
[WhiteElo "2634"]
[BlackElo "2549"]
[Annotator "TA"]
[PlyCount "84"]
[EventDate "2022.10.21"]
[EventType "team-tourn"]
[EventCountry "GER"]
[SourceTitle "playchess.com"]
[Source "ChessBase"]
[SourceQuality "1"]
[TimeControl "40/6000+30:3000+30"]

{[%evp 16,84,49,27,30,28,26,23,29,28,38,16,17,17,17,17,9,12,11,7,9,12,24,29,27,14,19,10,6,0,0,0,0,10,19,18,17,17,19,14,19,19,20,20,27,24,24,21,21,4,4,4,4,4,34,34,34,34,41,41,42,42,42,0,42,0,49,42,50,0,64]} 1. e4 {[%emt 0:00:06]} c5 {[%emt 0:00:11]} 2. Nf3 {[%emt 0:00:12]} d6 {[%emt 0:00:09]} 3. d4 {[%emt 0:00:33]} cxd4 {[%emt 0:00:08]} 4. Nxd4 {[%emt 0:00:20]} Nf6 {[%emt 0:00:09]} 5. Nc3 {[%emt 0:00:11]} Nc6 {[%emt 0:01:30]} 6. Bg5 {[%emt 0:01:56]} e6 {[%emt 0:00:11]} 7. Qd2 {[%emt 0:00:44]} a6 {[%emt 0:02:07]} 8. O-O-O {[%emt 0:00:58]} Bd7 {[%emt 0:00:05]} 9. Kb1 {[%emt 0:04:20]} Be7 {[%emt 0:01:13] B67: Sicilian: Richter-Rauzer: 7...a6 8 0-0-0 Bd7, lines without 9 f4 Be7.} 10. Nxc6 $1 {[%emt 0:05:00][%mdl 4] is currently scoring better than 10.f3.} Bxc6 {[%emt 0:00:17]} 11. f3 {[%emt 0:00:21]} Rc8 {[%emt 0:03:55] White has an edge.} 12. h4 {[%emt 0:13:58] [#]} d5 $146 {[%emt 0:00:53][%cal Rd5e4]} ({Predecessor:} 12... b5 13. Ne2 h5 14. Nd4 Bd7 15. Bd3 Qb6 16. Be3 Qc7 17. c3 O-O 18. Bg5 e5 {1-0 (40) Arjun,K (2529)-Sadhwani,R (2620) chess24.com INT 2022}) 13. Qe1 {[%emt 0:17:35] Threatens to win with exd5.} h6 {[%emt 0:03:15]} 14. Bxf6 {[%emt 0:19:42]} Bxf6 {[%emt 0:00:38]} 15. exd5 {[%emt 0:00:18]} Bxc3 {[%emt 0:00:22]} 16. Qxc3 {[%emt 0:00:07]} O-O {[%emt 0:00:10]} 17. Qe1 {[%emt 0:10:34]} exd5 {[%emt 0:01:07]} 18. Qe5 {[%emt 0:01:50]} Qc7 {[%emt 0:22:04]} 19. Qxc7 {[%emt 0:05:43]} Rxc7 {[%emt 0:00:08]} 20. Bd3 {[%emt 0:01:42]} Re8 {[%emt 0:04:33]} 21. b3 {[%emt 0:01:34]} Kf8 {[%emt 0:03:22]} 22. Kb2 {[%emt 0:02:06]} Re6 {[%emt 0:10:16]} 23. a4 {[%emt 0:03:33]} a5 {[%emt 0:02:01]} 24. Rd2 {[%emt 0:11:32]} Rf6 {[%emt 0:09:45]} 25. Re2 {[%emt 0:02:19]} Rf4 {[%emt 0:04:42]} 26. Kc1 {[%emt 0:00:12]} Re7 {[%emt 0:02:21]} 27. Kd2 {[%emt 0:00:25]} Rxe2+ {[%emt 0:00:16]} 28. Kxe2 $11 {[%emt 0:00:22][%mdl 4096] Endgame KRB-KRB} Ke7 {[%emt 0:00:22]} 29. Ke3 {[%emt 0:00:24]} Rb4 {[%emt 0:04:18]} 30. g3 {[%emt 0:01:10]} Kd6 {[%emt 0:04:44]} 31. Re1 {[%emt 0:00:47]} Bd7 {[%emt 0:11:24]} 32. f4 {[%emt 0:03:41]} h5 {[%emt 0:07:34]} 33. Kd2 {[%emt 0:00:36]} g6 {[%emt 0:00:21]} 34. Re5 {[%emt 0:00:59]} f6 {[%emt 0:05:08]} 35. Re1 {[%emt 0:00:31]} f5 {[%emt 0:02:21]} 36. Kc3 {[%emt 0:00:57]} Bc6 {[%emt 0:00:11]} 37. Re5 {[%emt 0:00:51]} Bd7 {[%emt 0:01:32]} 38. Kd2 {[%emt 0:00:26]} Bc6 {[%emt 0:00:13]} 39. Re1 {[%emt 0:00:16]} Bd7 {[%emt 0:00:58]} 40. Kc3 {[%emt 0:00:45]} Bc6 $1 {[%emt 0:00:18]} 41. Re2 {[%emt 0:50:47]} Bd7 {[%emt 0:50:22]} 42. Re1 {[%emt 0:00:00]} Bc6 $1 {[%emt 0:00:00] Weighted Error Value: White=0.07 (flawless) /Black=0.02 (flawless)} 1/2-1/2

[Event "German Bundesliga 2022-23"]
[Site "Germany"]
[Date "2022.11.26"]
[Round "3.8"]
[White "Kozak, Adam"]
[Black "Kovalenko, Igor"]
[Result "1/2-1/2"]
[ECO "D35"]
[WhiteElo "2538"]
[BlackElo "2674"]
[Annotator "TA"]
[PlyCount "84"]
[EventDate "2022.10.21"]
[EventType "team-tourn"]
[EventCountry "GER"]
[SourceTitle "playchess.com"]
[Source "ChessBase"]
[SourceQuality "1"]
[TimeControl "40/6000+30:3000+30"]

{[%evp 13,84,12,23,27,54,54,52,54,54,52,56,47,58,10,21,12,29,15,27,25,21,10,21,0,0,0,0,0,0,-20,-13,-10,-18,-10,-20,-6,0,0,0,-4,0,0,0,0,0,0,0,0,0,0,0,0,0,0,0,0,0,0,0,-16,0,0,0,0,0,-6,0,0,0,0,0,0,0]} 1. d4 {[%emt 0:00:15]} Nf6 {[%emt 0:00:08]} 2. c4 {[%emt 0:00:11]} e6 {[%emt 0:00:03]} 3. Nc3 {[%emt 0:00:08]} d5 {[%emt 0:00:10]} 4. cxd5 {[%emt 0:00:18]} exd5 {[%emt 0:00:03]} 5. Bg5 {[%emt 0:00:43]} c6 {[%emt 0:00:05]} 6. e3 {[%emt 0:00:33]} h6 {[%emt 0:01:26]} 7. Bh4 {[%emt 0:01:36]} Bf5 {[%emt 0:00:06]} 8. Qf3 {[%emt 0:02:36] D35: Queen's Gambit Declined: Exchange Variation.} Be6 {[%emt 0:00:05] 8...Bh7 is setting a new trend.} 9. Bxf6 {[%emt 0:02:02]} Qxf6 {[%emt 0:00:03]} 10. Qxf6 {[%emt 0:00:09] White is slightly better.} gxf6 {[%emt 0:00:03]} 11. Bd3 {[%emt 0:04:36]} a5 {[%emt 0:00:45]} 12. Nge2 {[%emt 0:06:19]} Nd7 {[%emt 0:14:05] [#]} 13. a4 $146 {[%emt 0:07:54]} (13. Nf4 $14 {was preferrable.}) ({Predecessor:} 13. f3 Bd6 14. Kf2 f5 15. Nf4 Bxf4 16. exf4 Ke7 17. g4 Kf6 18. h3 Nb6 19. Rae1 {1-0 (52) Korobov,A (2693)-Lopez Martinez,J (2542) Sitges 2020}) 13... Bb4 {[%emt 0:01:19]} 14. Kd2 {[%emt 0:02:48]} Rg8 {[%emt 0:01:38]} 15. Rhg1 {[%emt 0:06:19]} Nb6 {[%emt 0:02:37]} 16. Kc2 {[%emt 0:07:14]} (16. Nf4 {seems wilder.} Ke7 17. g3 Rh8 18. Ke2) 16... Rc8 {[%emt 0:06:38]} 17. h3 {[%emt 0:15:19] The position is equal.} (17. Nf4 {looks sharper.} Ke7 18. Kd2 c5 19. Ke2) 17... Ke7 {[%emt 0:12:08]} 18. b3 {[%emt 0:04:03]} f5 {[%emt 0:02:41]} 19. Kb2 {[%emt 0:10:15]} Bd6 {[%emt 0:03:50] Inhibits Ng3.} 20. Nf4 {[%emt 0:01:56]} Nd7 {[%emt 0:15:21]} 21. g4 {[%emt 0:02:46]} fxg4 {[%emt 0:01:03]} 22. Nxe6 {[%emt 0:00:09]} fxe6 {[%emt 0:00:03]} 23. hxg4 {[%emt 0:00:17]} Nf6 {[%emt 0:02:16]} 24. f3 {[%emt 0:01:10]} Bb4 {[%emt 0:11:19]} 25. Rg2 {[%emt 0:06:24]} Rg5 {[%emt 0:13:03]} 26. Rh2 {[%emt 0:10:14]} c5 {[%emt 0:03:30]} (26... h5 {simplifies} 27. gxh5 Rxh5 28. Rxh5 Nxh5 29. Ne2 Nf6) 27. Na2 {[%emt 0:09:28]} ({Much worse is} 27. Rxh6 cxd4 28. Ne2 dxe3 $17) 27... cxd4 {[%emt 0:00:20]} 28. Nxb4 {[%emt 0:00:26]} axb4 {[%emt 0:00:05]} 29. exd4 {[%emt 0:00:05]} h5 {[%emt 0:08:45]} 30. gxh5 {[%emt 0:00:07]} Rxh5 {[%emt 0:02:27]} 31. Rxh5 {[%emt 0:01:02]} Nxh5 $11 {[%emt 0:00:05][%mdl 4096] Endgame KRB-KRN} 32. a5 {[%emt 0:00:52]} Nf4 {[%emt 0:00:05]} 33. Bb5 {[%emt 0:02:19]} Rc3 {[%emt 0:08:07]} 34. Ra4 {[%emt 0:00:11]} Rxf3 {[%emt 0:00:04]} 35. Rxb4 {[%emt 0:00:06]} Kd6 {[%emt 0:00:06]} 36. Kc2 {[%emt 0:01:34]} Kc7 {[%emt 0:00:08]} 37. Kd2 {[%emt 0:03:07]} Ng6 {[%emt 0:00:19]} 38. a6 {[%emt 0:03:00]} bxa6 {[%emt 0:00:03]} 39. Bxa6 {[%emt 0:00:03]} Rf2+ {[%emt 0:04:04]} 40. Kc3 {[%emt 0:01:20]} Ra2 {[%emt 0:00:36]} 41. Ra4 {[%emt 0:02:38]} Rg2 {[%emt 0:02:01]} 42. Bf1 {[%emt 0:08:47]} Rf2 {[%emt 0:00:51] Weighted Error Value: White=0.05 (flawless) /Black=0.05 (flawless)} 1/2-1/2

[Event "German Bundesliga 2022-23"]
[Site "Germany"]
[Date "2022.11.26"]
[Round "3.8"]
[White "Wachinger, Nikolas"]
[Black "Movsesian, Sergei"]
[Result "1/2-1/2"]
[ECO "B46"]
[WhiteElo "2434"]
[BlackElo "2624"]
[Annotator "TA"]
[PlyCount "92"]
[EventDate "2022.10.21"]
[EventType "team-tourn"]
[EventCountry "GER"]
[SourceTitle "playchess.com"]
[Source "ChessBase"]
[SourceQuality "1"]
[TimeControl "40/6000+30:3000+30"]

{[%evp 11,92,20,30,25,39,46,47,41,42,37,35,9,15,12,13,0,0,0,0,0,0,0,0,0,0,0,20,0,0,0,0,0,0,0,0,0,0,0,0,0,0,0,0,0,0,-8,-8,-8,-8,-30,-30,-29,-11,-60,-60,-60,-60,-60,-60,-60,-60,-60,-60,-60,-60,-60,-60,-60,-60,-60,-60,-60,-60,-60,-60,-60,-60,-60,0,-60,0,-60,0]} 1. e4 {[%emt 0:00:05]} c5 {[%emt 0:00:19]} 2. Nf3 {[%emt 0:00:45]} e6 {[%emt 0:00:00]} 3. d4 cxd4 {[%emt 0:00:11]} 4. Nxd4 {[%emt 0:00:14]} Nc6 {[%emt 0:00:16]} 5. Nc3 {[%emt 0:00:08]} a6 {[%emt 0:00:17]} 6. Nxc6 {[%emt 0:00:17]} bxc6 {[%emt 0:00:04]} 7. Qf3 {[%emt 0:00:15] B46: Sicilian: Taimanov: 5 Nc3 a6.} Qc7 {[%emt 0:04:05]} 8. Qg3 {[%emt 0:06:45]} Qxg3 {[%emt 0:00:37]} 9. hxg3 {[%emt 0:00:06] White is slightly better.} ({Of course not} 9. fxg3 d5 $11) 9... d5 {[%emt 0:00:15]} 10. Na4 {[%emt 0:12:42] And now Nb6 would win.} Bb7 {[%emt 0:02:24]} 11. Be3 {[%emt 0:03:50]} Nf6 {[%emt 0:01:37]} 12. exd5 {[%emt 0:10:19]} cxd5 {[%emt 0:01:25]} 13. Nc5 {[%emt 0:00:51] [#]} Bxc5 $146 {[%emt 0:04:24]} ({Predecessor:} 13... Bc8 14. Be2 Nd7 15. Nxd7 Bxd7 16. c4 Bb4+ 17. Bd2 Bxd2+ 18. Kxd2 Bc6 19. Bf3 O-O-O 20. cxd5 Bxd5 {½-½ (33) Pulpan,J (2414)-Panesso Rivera,H (2380) Pardubice 2019}) 14. Bxc5 {[%emt 0:00:09]} Rc8 {[%emt 0:00:31]} 15. Bd4 {[%emt 0:08:22]} Rxc2 {[%emt 0:02:33]} 16. Bd3 {[%emt 0:00:31]} Rc8 {[%emt 0:02:41]} 17. f3 {[%emt 0:07:12]} Ke7 {[%emt 0:08:29]} 18. g4 {[%emt 0:00:33]} Ne8 {[%emt 0:07:36]} 19. Kd2 {[%emt 0:02:46][%cal Og4g5]} f6 {[%emt 0:04:06]} 20. Rxh7 {[%emt 0:08:46]} Rxh7 {[%emt 0:03:00]} 21. Bxh7 {[%emt 0:00:04] A strong pair of Bishops.} Nd6 {[%emt 0:00:42]} 22. Rc1 {[%emt 0:28:34]} Nc4+ {[%emt 0:15:57]} 23. Ke2 {[%emt 0:01:54]} e5 {[%emt 0:02:00]} 24. Bc3 {[%emt 0:01:06]} Nd6 {[%emt 0:00:58]} 25. Bd3 {[%emt 0:02:23]} Ke6 {[%emt 0:11:06]} (25... d4 $5 26. Bd2 $8 Rxc1 27. Bxc1 Ke6 $11) 26. Bd2 {[%emt 0:02:44]} Rxc1 {[%emt 0:03:17]} 27. Bxc1 $11 {[%emt 0:00:03][%mdl 4096] Endgame KBB-KBN} d4 {[%emt 0:00:23]} 28. b3 {[%emt 0:02:10]} e4 {[%emt 0:01:33]} 29. fxe4 {[%emt 0:01:40]} Nxe4 {[%emt 0:00:08]} 30. Bxe4 {[%emt 0:03:38]} Bxe4 {[%emt 0:00:13] KB-KB} 31. g3 {[%emt 0:00:07]} g5 {[%emt 0:01:03]} 32. Ba3 {[%emt 0:03:18]} (32. Bd2 $11 {feels stronger.}) 32... Bb1 $1 $15 {[%emt 0:02:19]} 33. Bc5 {[%emt 0:00:04]} Bxa2 {[%emt 0:04:35]} 34. Bxd4 {[%emt 0:00:07]} Bxb3 {[%emt 0:00:04]} 35. Bc3 $1 {[%emt 0:00:07]} Bc4+ {[%emt 0:01:06]} 36. Kf2 {[%emt 0:00:17]} Bb5 {[%emt 0:00:34]} 37. Ke3 {[%emt 0:00:24]} Ba4 {[%emt 0:00:18] Threatens to win with ...Bd1.} 38. Ke2 {[%emt 0:00:07] Prevents Bd1+.} Bb3 {[%emt 0:00:04]} 39. Ba5 {[%emt 0:00:32]} Bd5 {[%emt 0:02:02]} 40. Bc3 {[%emt 0:00:10]} Bc6 {[%emt 0:00:05]} 41. Kf2 {[%emt 0:50:09]} Bd7 {[%emt 0:50:06]} 42. Ke3 {[%emt 0:00:20]} Kf7 {[%emt 0:00:18]} 43. Kf3 {[%emt 0:00:05]} Ba4 {[%emt 0:00:36]} 44. Ke2 {[%emt 0:00:07] Against Bd1+} Bd7 {[%emt 0:00:17]} 45. Kf3 {[%emt 0:00:06]} Ba4 {[%emt 0:00:03]} 46. Ke2 $1 {[%emt 0:00:05] Against Bd1+} Bd7 {[%emt 0:00:04] Weighted Error Value: White=0.04 (flawless) /Black=0.05 (flawless)} (46... Bb3 $15) 1/2-1/2

[Event "German Bundesliga 2022-23"]
[Site "Germany"]
[Date "2022.11.26"]
[Round "3.9"]
[White "Kadric, Denis"]
[Black "Ivic, Velimir"]
[Result "1/2-1/2"]
[ECO "B45"]
[WhiteElo "2582"]
[BlackElo "2560"]
[Annotator "TA"]
[PlyCount "65"]
[EventDate "2022.10.21"]
[EventType "team-tourn"]
[EventCountry "GER"]
[SourceTitle "playchess.com"]
[Source "ChessBase"]
[SourceQuality "1"]
[TimeControl "40/6000+30:3000+30"]

{[%evp 22,65,24,23,17,29,19,28,28,23,20,20,25,21,27,29,25,23,22,18,14,26,12,22,25,0,0,0,0,0,0,0,0,0,0,0,0,0,0,0,0,0,0,0,0,0]} 1. e4 {[%emt 0:00:04]} c5 {[%emt 0:00:13]} 2. Nc3 {[%emt 0:00:04]} e6 {[%emt 0:00:52]} 3. Nf3 {[%emt 0:00:46]} Nc6 {[%emt 0:01:12]} 4. d4 {[%emt 0:00:04]} cxd4 {[%emt 0:00:06]} 5. Nxd4 {[%emt 0:00:02]} Nf6 {[%emt 0:00:40]} 6. Nxc6 {[%emt 0:01:41]} bxc6 {[%emt 0:00:08]} 7. e5 {[%emt 0:00:03]} Nd5 {[%emt 0:00:07]} 8. Ne4 {[%emt 0:00:04]} Qc7 {[%emt 0:00:41]} 9. f4 {[%emt 0:00:04]} Qb6 {[%emt 0:00:06]} 10. c4 {[%emt 0:00:06]} Bb4+ {[%emt 0:00:57]} 11. Ke2 {[%emt 0:00:02]} f5 {[%emt 0:00:47]} 12. exf6 {[%emt 0:00:13]} Nxf6 {[%emt 0:00:08] B45: Sicilian Four Knights.} 13. Be3 {[%emt 0:00:09] Really sharp!} Qd8 {[%emt 0:01:23]} 14. Nd6+ {[%emt 0:00:04]} Bxd6 {[%emt 0:00:07] White has an edge.} 15. Qxd6 {[%emt 0:00:01]} Bb7 {[%emt 0:00:23]} 16. Rd1 {[%emt 0:00:06]} Rc8 {[%emt 0:02:59][%cal Oc6c5]} 17. Qc5 {[%emt 0:00:21]} ({But not} 17. Bxa7 c5 $15) 17... Qb6 {[%emt 0:19:04]} 18. b4 {[%emt 0:15:34] [#]} d5 $146 {[%emt 0:13:33]} ({Predecessor:} 18... Qa6 19. Kf3 d6 20. Rxd6 O-O 21. Bd3 e5 22. Rd1 Rce8 23. Kf2 exf4 24. Bd4 Qxa2+ {0-1 (34) Magold,F (2267)-Ilamparthi,A (2269) Mamaia 2022}) 19. Qxb6 {[%emt 0:19:18]} axb6 {[%emt 0:00:06]} 20. Bxb6 {[%emt 0:00:05]} Ra8 {[%emt 0:05:23] Against a4} 21. Ra1 {[%emt 0:27:16]} Ra4 {[%emt 0:09:54]} 22. a3 {[%emt 0:01:08]} Kf7 {[%emt 0:02:26]} 23. Ke3 {[%emt 0:09:31]} Rha8 {[%emt 0:03:08] The position is equal.} 24. Bd3 {[%emt 0:00:35]} Rxa3 {[%emt 0:01:37]} 25. Rxa3 {[%emt 0:00:13]} Rxa3 {[%emt 0:00:07]} 26. Kd4 {[%emt 0:00:18]} Ba6 {[%emt 0:05:36]} 27. Rc1 {[%emt 0:07:31]} Bxc4 {[%emt 0:01:46]} 28. Bxc4 {[%emt 0:00:03]} dxc4 {[%emt 0:00:07]} 29. Rxc4 $11 {[%emt 0:00:36] KRB-KRN} Nd5 {[%emt 0:01:26]} 30. Rxc6 {[%emt 0:02:40]} Ra4 {[%emt 0:01:18]} 31. Bc5 {[%emt 0:08:17]} Nxb4 {[%emt 0:00:21]} 32. Bxb4 {[%emt 0:00:02]} Rxb4+ {[%emt 0:00:07]} 33. Ke3 {[%emt 0:00:01] A balanced but interesting game.   Weighted Error Value: White=0.01 (flawless) /Black=0.00 (flawless)} 1/2-1/2

[Event "German Bundesliga 2022-23"]
[Site "Germany"]
[Date "2022.11.26"]
[Round "3.9"]
[White "Parligras, Mircea-Emilian"]
[Black "Maghsoodloo, Parham"]
[Result "1/2-1/2"]
[ECO "D85"]
[WhiteElo "2567"]
[BlackElo "2721"]
[Annotator "TA"]
[PlyCount "111"]
[EventDate "2022.10.21"]
[EventType "team-tourn"]
[EventCountry "GER"]
[SourceTitle "playchess.com"]
[Source "ChessBase"]
[SourceQuality "1"]
[TimeControl "40/6000+30:3000+30"]

{[%evp 18,111,0,0,0,0,12,8,9,19,31,-1,-2,-4,-2,-8,0,0,10,-5,-10,-131,-131,-131,-131,-131,-131,-131,-131,-131,-131,-131,-131,-131,-131,-237,-237,-237,-237,-256,-266,-266,-266,-266,-141,-141,-141,-141,-141,-141,-120,-120,-120,-120,-120,-120,-120,-120,-120,-120,-116,-120,-120,-120,-120,-120,-120,-120,-120,-120,-120,-120,-120,-120,-120,-120,-120,-120,0,-120,-120,-120,-120,-120,-78,-126,-78,-88,-78,-78,-78,-78,-71,-71,-71,-71]} 1. d4 {[%emt 0:00:04]} Nf6 {[%emt 0:00:08]} 2. c4 {[%emt 0:00:09]} g6 {[%emt 0:00:03]} 3. Nc3 {[%emt 0:00:22]} d5 {[%emt 0:00:06]} 4. cxd5 {[%emt 0:00:59]} Nxd5 {[%emt 0:00:09]} 5. e4 {[%emt 0:00:04]} Nxc3 {[%emt 0:00:08]} 6. bxc3 {[%emt 0:00:05][%cal Bb2c3,Bc3d4,Bd4d5][%mdl 32]} Bg7 {[%emt 0:00:05]} 7. Nf3 {[%emt 0:00:23]} c5 {[%emt 0:00:07]} 8. h3 {[%emt 0:00:22]} O-O {[%emt 0:00:19]} 9. Be3 {[%emt 0:00:13]} Nc6 {[%emt 0:00:07]} 10. Be2 {[%emt 0:00:24]} (10. dxc5 $2 Bxc3+ 11. Nd2 Qa5 $19) 10... cxd4 {[%emt 0:00:06] D85: Exchange Grünfeld: Unusual White 7th moves and lines with 7 Nf3.} 11. cxd4 {[%emt 0:00:05]} Qa5+ {[%emt 0:00:04]} 12. Bd2 {[%emt 0:00:23]} Qa3 {[%emt 0:00:05] [#] The position is equal.} 13. d5 {[%emt 0:00:27]} Ne5 {[%emt 0:00:07]} 14. Nxe5 {[%emt 0:03:31]} Bxe5 {[%emt 0:00:08]} 15. O-O {[%emt 0:01:22]} Bd7 {[%emt 0:02:02][%cal Of8c8]} 16. Rb1 {[%emt 0:01:35]} Ba4 $40 {[%emt 0:02:39][%mdl 128] White needs to defend precisely.} 17. Qc1 {[%emt 0:11:45]} Qxa2 {[%emt 0:00:28] [#] ...Rfc8 is the strong threat.} 18. Rxb7 $146 {[%emt 0:00:36]} (18. Bc4 {simplifies} Qc2 19. Rxb7 Bd6 20. Qxc2 Bxc2 21. e5) ({Predecessor:} 18. Bc4 Qc2 19. Rxb7 Rfc8 20. Qxc2 Bxc2 21. Ba6 Bxe4 22. Rxe7 Re8 23. Rxe8+ Rxe8 24. Re1 Bxd5 {0-1 (60) Girya,O (2448)-Goganov,A (2581) Anapa 2021}) 18... Rfc8 {[%emt 0:04:47] Prevents Bc4.} 19. Rxa7 {[%emt 0:14:46]} Rxc1 $17 {[%emt 0:22:47][%mdl 64] Pin} 20. Rxa8+ {[%emt 0:00:08] [#]} Rc8 $3 {[%emt 0:00:04][%mdl 512]} 21. Rxc8+ {[%emt 0:02:17]} Kg7 {[%emt 0:00:05]} 22. Bd1 {[%emt 0:21:02]} Qxd2 {[%emt 0:01:08]} (22... Bb5 $6 23. Rc2 Qb1 24. Re1 $11) 23. Bxa4 {[%emt 0:00:05]} Qf4 {[%emt 0:00:13][%csl Ge5][%cal Rf4h2]} 24. g3 {[%emt 0:00:38]} Qxe4 {[%emt 0:00:06]} 25. Bd1 {[%emt 0:17:52]} h5 {[%emt 0:01:37]} 26. Rc2 {[%emt 0:05:40]} (26. Ra8 $17 {might work better.}) 26... h4 $19 {[%emt 0:01:26]} (26... Qxd5 27. h4 $17) 27. Re2 {[%emt 0:03:18]} Qd4 {[%emt 0:01:19]} (27... Qxd5 28. gxh4 Bd4 29. Kh2) 28. gxh4 {[%emt 0:03:50]} Bd6 $1 {[%emt 0:02:14]} ({Stronger than} 28... Qxd5 29. Re3 $17) ({Weaker is} 28... Qf4 29. Rxe5 Qxe5 30. Bf3 $17) 29. Re3 {[%emt 0:02:17]} Qxh4 {[%emt 0:00:54]} ({Inferior is} 29... Qxd5 30. Bg4 $17) 30. Rfe1 {[%emt 0:03:09]} Qg5+ {[%emt 0:04:00]} (30... Bc5 $19 31. Rf3 Qg5+ 32. Kf1 Qxd5) 31. Kf1 $17 {[%emt 0:00:59]} Bb4 {[%emt 0:01:07]} 32. Bf3 {[%emt 0:01:51]} Bxe1 {[%emt 0:00:06]} 33. Rxe1 {[%emt 0:00:22][%mdl 4096] Endgame KQ-KRB} f5 {[%emt 0:10:11]} 34. Re6 {[%emt 0:01:15]} Kh6 {[%emt 0:08:19]} 35. Re3 {[%emt 0:04:00]} Qh4 {[%emt 0:00:53]} 36. Kg2 {[%emt 0:00:13]} Qb4 {[%emt 0:00:08]} 37. Re6 {[%emt 0:00:17]} Kg5 {[%emt 0:00:18]} 38. Rc6 {[%emt 0:01:51]} Qa3 {[%emt 0:01:11]} 39. Kg3 {[%emt 0:00:41]} Qa4 {[%emt 0:01:53] Against h4+} 40. Re6 {[%emt 0:01:58]} Qb4 {[%emt 0:02:55]} 41. Kg2 {[%emt 0:50:59]} Kh6 {[%emt 0:53:13]} 42. Re3 {[%emt 0:02:15]} Kg7 {[%emt 0:00:08]} 43. Re6 {[%emt 0:00:22]} Kf7 {[%emt 0:00:07]} 44. Re3 {[%emt 0:01:34]} Qd4 {[%emt 0:00:08]} 45. Re6 {[%emt 0:00:54]} Qf4 {[%emt 0:00:45]} 46. Re3 {[%emt 0:01:50]} Qg5+ {[%emt 0:00:16]} 47. Kf1 {[%emt 0:00:49]} Qf4 {[%emt 0:00:12]} 48. Kg2 $1 {[%emt 0:00:09]} Ke8 {[%emt 0:00:03] Black is better.} 49. Re6 {[%emt 0:00:40] [#]} Qg5+ $1 {[%emt 0:00:07]} 50. Kf1 {[%emt 0:00:21]} Kd7 {[%emt 0:00:04] Inhibits d6.} 51. Rc6 {[%emt 0:03:02] [#] Prevents Qc1+.} ({White should try} 51. Be2) 51... Qf4 {[%emt 0:01:39]} (51... Qh6 $142 $1 {[%cal Rh6h3]} 52. Kg2 Ke8) 52. Kg2 {[%emt 0:00:07]} g5 {[%emt 0:00:47] Strongly threatening ...g4.} 53. Rg6 {[%emt 0:01:51] Against g4} Ke8 {[%emt 0:01:25]} 54. Re6 {[%emt 0:00:00]} g4 {[%emt 0:00:00] Prevents d6.} 55. hxg4 {[%emt 0:00:00]} fxg4 {[%emt 0:00:00]} 56. Be2 {[%emt 0:00:00] Weighted Error Value: White=0.09 (flawless) /Black=0.09 (flawless)} 1/2-1/2

[Event "German Bundesliga 2022-23"]
[Site "Germany"]
[Date "2022.11.26"]
[Round "3.10"]
[White "Tabatabaei, M. Amin"]
[Black "Plat, Vojtech"]
[Result "1-0"]
[ECO "D78"]
[WhiteElo "2657"]
[BlackElo "2546"]
[Annotator "TA"]
[PlyCount "59"]
[EventDate "2022.10.21"]
[EventType "team-tourn"]
[EventCountry "GER"]
[SourceTitle "playchess.com"]
[Source "ChessBase"]
[SourceQuality "1"]
[TimeControl "40/6000+30:3000+30"]

{[%evp 13,59,0,23,22,25,8,25,15,13,24,27,19,37,10,28,20,27,16,16,16,18,25,27,23,31,25,40,24,21,21,21,21,21,20,19,17,20,8,12,14,15,19,12,13,21,8,16,19]} 1. Nf3 {[%emt 0:00:08]} d5 {[%emt 0:00:35]} 2. g3 {[%emt 0:01:14]} g6 {[%emt 0:00:18]} 3. Bg2 {[%emt 0:00:46]} Bg7 {[%emt 0:00:05]} 4. d4 {[%emt 0:00:06]} Nf6 {[%emt 0:00:09]} 5. O-O {[%emt 0:01:58]} O-O {[%emt 0:00:10]} 6. c4 {[%emt 0:00:06]} c6 {[%emt 0:01:14]} 7. Qb3 {[%emt 0:01:01]} a5 {[%emt 0:08:45]} 8. cxd5 {[%emt 0:00:28] D78: Fianchetto Grünfeld: 6 0-0 c6.} a4 {[%emt 0:01:30]} 9. Qd1 {[%emt 0:00:06]} cxd5 {[%emt 0:01:31]} 10. Nc3 {[%emt 0:00:06] White has an edge.} Qa5 {[%emt 0:07:24]} 11. Bd2 {[%emt 0:00:40]} Nc6 {[%emt 0:14:18]} 12. e3 {[%emt 0:00:33]} e6 {[%emt 0:07:45] [#]} 13. Qe2 $5 $146 {[%emt 0:05:17][%mdl 8] New and interesting.} ({Predecessor:} 13. Rc1 Qa6 14. Re1 Bd7 15. Bf1 Qa7 16. Ne5 Nxe5 17. dxe5 Ne8 18. Nxd5 exd5 19. Bb4 {0-1 (39) Ftacnik,L (2501)-Vogel,R (2447) Germany 2022}) 13... Qd8 {[%emt 0:09:11]} 14. Rfc1 {[%emt 0:19:56]} Bd7 {[%emt 0:00:14]} 15. Ne1 {[%emt 0:01:19][%cal Bf3e1,Be1d3,Bd3c5][%mdl 32]} Ne8 {[%emt 0:15:26]} 16. Nd3 {[%emt 0:10:34]} Nd6 {[%emt 0:00:22]} 17. Nc5 {[%emt 0:03:13]} b6 {[%emt 0:00:28]} 18. Nxd7 {[%emt 0:15:03]} Qxd7 {[%emt 0:00:22]} 19. Be1 {[%emt 0:00:39]} Rfc8 {[%emt 0:04:10]} 20. Rab1 {[%emt 0:02:55]} (20. Nb5 $5 {[%cal Rb5d6]}) 20... Bf8 {[%emt 0:00:18]} 21. Bf1 {[%emt 0:12:28] The position is equal.} Na5 {[%emt 0:05:37]} 22. Qd1 {[%emt 0:05:58]} Nac4 {[%emt 0:02:54]} 23. b3 {[%emt 0:01:41]} axb3 {[%emt 0:00:05]} 24. axb3 {[%emt 0:00:09]} Na5 {[%emt 0:00:06]} 25. Na4 {[%emt 0:04:08]} Qb7 {[%emt 0:00:20]} 26. Bd3 {[%emt 0:07:31]} Rxc1 {[%emt 0:03:08]} 27. Rxc1 {[%emt 0:00:32]} Rc8 {[%emt 0:01:26]} 28. Ra1 {[%emt 0:01:03][%cal Oa4b6]} Nc6 {[%emt 0:01:36]} 29. Qe2 {[%emt 0:02:08] [#] Threatens to win with Ba6.} Nb8 {[%emt 0:02:12] Prevents Ba6.} 30. Nc3 {[%emt 0:01:38][%mdl 32768] Weighted Error Value: White=0.04 (flawless) /Black=0.04 (flawless) . Loss on time!?} 1-0